bitfinex/quotes_ETHUSD_20250219
["timestamp","ask_amount","ask_price","bid_price","bid_amount"]
[1739935262654,0.7635,2687.1,2686.7,4.46199899]
[1739935263464,0.7635,2687.1,2686.7,4.90819889]
[1739935263966,2.48447533,2687.8,2686.8,3.72187]
[1739935264265,0.81001441,2687.7,2686.7,4.90819889]
[1739935264433,0.81001441,2687.7,2686.7,4.46199899]
[1739935265138,0.7635,2687.7,2686.7,4.46199899]
[1739935265333,0.7635,2687.7,2686.8,3.72186]
[1739935265533,0.7635,2687.7,2686.8,4.4738985]
[1739935266469,0.7635,2687.7,2686.8,8.1956885]
[1739935266765,0.7635,2687.7,2686.9,1.26576875]
[1739935267268,0.7635,2687.7,2686.9,4.98747875]
[1739935267443,0.7635,2687.7,2687.1,3.72137]
[1739935267849,0.7635,2687.7,2687.0,0.7963]
[1739935268047,0.7635,2687.7,2687.1,3.72147]
[1739935268274,0.7635,2687.7,2687.2,0.451777]
[1739935268479,0.7635,2687.7,2686.9,4.46199899]
[1739935269189,0.7635,2687.7,2687.0,3.7215]
[1739935269878,0.7635,2687.7,2687.2,3.72129]
[1739935270067,0.822,2688.4,2687.4,3.72102]
[1739935270267,0.822,2688.4,2687.3,0.287]
[1739935270574,0.7574,2688.3,2687.4,0.400828]
[1739935271107,0.80390628,2688.3,2687.4,4.121868]
[1739935271301,0.7574,2688.3,2687.4,4.121868]
[1739935271508,0.7574,2688.3,2687.5,3.72083]
[1739935271711,0.7574,2688.3,2687.4,4.121808]
[1739935272018,0.7574,2688.3,2687.5,0.5171208]
[1739935272807,0.7574,2688.3,2687.5,4.97911979]
[1739935272987,0.8039057,2688.3,2687.5,4.97911979]
[1739935273569,0.04650386,2688.2,2687.5,4.97911979]
[1739935274311,0.7918,2687.9,2687.5,4.46199899]
[1739935274614,0.7918,2687.7,2687.5,4.46199899]
[1739935274916,0.7918,2687.7,2687.2,0.75482397]
[1739935278061,2.48447533,2687.7,2687.2,0.75482397]
[1739935278257,0.85351265,2687.6,2686.9,4.46199899]
[1739935278530,0.7747,2687.4,2686.5,3.0]
[1739935278750,0.04652096,2687.3,2686.5,3.0]
[1739935278898,0.7747,2687.2,2686.4,4.46199899]
[1739935279097,0.7747,2687.2,2686.7,0.7561981]
[1739935279702,0.82122095,2687.2,2686.7,0.7561981]
[1739935279901,0.7747,2687.2,2686.7,0.7561981]
[1739935281303,0.7747,2687.2,2686.5,3.0]
[1739935281503,0.7747,2687.2,2686.6,0.7461999]
[1739935282712,0.04652092,2687.1,2686.6,0.73836395]
[1739935282919,2.48447533,2687.4,2686.4,4.46199899]
[1739935282920,0.8065,2687.0,2686.4,4.46199899]
[1739935283864,0.8065,2687.0,2686.5,0.74627365]
[1739935285036,0.8258,2687.6,2686.7,3.72203]
[1739935285365,0.8258,2687.6,2686.7,8.18394899]
[1739935285668,0.8258,2687.6,2686.8,0.8996349]
[1739935286524,0.8258,2687.6,2687.0,3.72161]
[1739935286960,0.8258,2687.6,2686.8,7.6215249]
[1739935287881,0.8258,2687.6,2687.3,0.74022934]
[1739935288564,0.8258,2688.2,2687.3,0.74022934]
[1739935288775,0.8258,2688.2,2687.4,0.52739593]
[1739935288952,0.87230688,2688.2,2687.4,0.52739593]
[1739935289128,0.87230688,2688.2,2687.3,0.74022934]
[1739935289565,0.8258,2688.2,2687.3,5.20222833]
[1739935290045,0.04650411,2688.1,2687.3,5.20222833]
[1739935290632,0.811,2688.0,2687.3,5.20222833]
[1739935292165,5.665,2688.8,2687.3,5.20222833]
[1739935292166,0.7752,2688.5,2687.9,2.48447533]
[1739935292353,0.7752,2688.5,2687.9,7.52983439]
[1739935292548,0.7752,2688.5,2687.9,4.46199899]
[1739935293251,0.7752,2688.5,2688.1,0.73548122]
[1739935294356,5.38,2689.5,2688.1,0.73548122]
[1739935294553,2.48447533,2689.7,2688.2,3.7199]
[1739935294554,0.7938,2689.3,2688.2,3.7199]
[1739935294963,0.7938,2689.1,2688.1,3.73548122]
[1739935295166,0.04649125,2689.0,2688.1,3.73548122]
[1739935295760,0.7938,2688.9,2688.1,0.73548122]
[1739935295959,0.7938,2688.9,2688.1,5.60221454]
[1739935296670,0.7938,2688.9,2688.5,0.76159916]
[1739935301694,0.7938,2688.9,2688.6,3.7194]
[1739935301873,0.7935,2689.5,2688.5,4.48111916]
[1739935302069,0.61735,2689.4,2688.5,9.50117007]
[1739935302278,0.7935,2689.5,2688.5,9.50117007]
[1739935303065,0.7935,2689.5,2688.5,5.78165007]
[1739935303303,0.7763,2689.3,2688.5,5.78165007]
[1739935303601,0.7763,2689.1,2688.5,5.78165007]
[1739935304499,0.7763,2689.1,2688.5,5.22359815]
[1739935305767,0.7763,2689.1,2688.5,0.76159916]
[1739935306998,0.79848936,2689.0,2688.2,4.46199899]
[1739935307501,0.752,2689.0,2688.2,4.46199899]
[1739935307892,0.752,2689.0,2688.3,0.73591491]
[1739935308095,3.0,2689.1,2688.3,0.73591491]
[1739935308096,0.752,2688.8,2688.3,0.73591491]
[1739935311916,0.752,2688.8,2688.3,5.22752491]
[1739935312068,0.7921,2689.1,2688.3,1.50781491]
[1739935312722,0.7921,2689.1,2688.3,5.22761491]
[1739935312870,0.7921,2689.1,2688.4,0.52276149]
[1739935314506,0.7921,2689.1,2688.5,3.71951]
[1739935315072,0.7921,2689.1,2688.5,3.71945]
[1739935317710,0.7921,2689.1,2688.5,8.18144899]
[1739935318107,0.7921,2689.1,2688.9,0.75720906]
[1739935318778,0.7921,2689.1,2688.5,4.46199899]
[1739935319186,0.7676,2688.9,2688.5,4.46199899]
[1739935323624,0.7676,2688.9,2688.4,0.76295171]
[1739935325301,0.84749377,2688.8,2688.2,4.46199899]
[1739935325745,0.84749377,2688.8,2688.3,0.75976936]
[1739935326732,0.801,2688.8,2688.3,0.75976936]
[1739935330021,0.801,2688.8,2688.3,1.68235519]
[1739935330224,0.801,2688.8,2688.3,2.48295519]
[1739935330447,0.801,2688.8,2688.3,1.68235519]
[1739935330807,0.7709,2689.1,2688.4,3.71966]
[1739935331016,0.7709,2689.1,2688.5,0.54020152]
[1739935331644,0.7709,2689.4,2688.6,4.47758]
[1739935331852,0.7709,2689.4,2688.6,5.22029899]
[1739935332415,0.7709,2689.4,2688.6,4.46199899]
[1739935332617,0.7709,2689.4,2688.7,0.50022005]
[1739935332948,0.7709,2689.4,2688.6,4.46199899]
[1739935333152,0.7709,2689.2,2688.6,4.46199899]
[1739935333843,0.7709,2689.2,2688.8,0.72775958]
[1739935334042,0.81738622,2689.1,2688.6,4.46199899]
[1739935334250,0.7709,2689.1,2688.6,4.46199899]
[1739935334448,0.7731,2688.9,2688.6,4.46199899]
[1739935334611,0.7731,2688.7,2688.4,0.73387583]
[1739935334812,0.7731,2688.7,2688.0,4.7398876]
[1739935335544,0.7731,2688.7,2688.0,4.46199899]
[1739935336251,0.7731,2688.7,2688.3,0.7470034]
[1739935337747,0.8088,2688.9,2688.3,0.7470034]
[1739935338657,0.8088,2688.9,2688.3,1.71867264]
[1739935339015,0.8198,2689.4,2688.3,4.71867264]
[1739935339222,0.8198,2689.4,2689.0,2.48447533]
[1739935339531,0.8198,2690.3,2689.0,10.66523432]
[1739935340254,0.8198,2690.3,2689.0,8.18075899]
[1739935340461,0.8198,2690.1,2689.1,0.79554605]
[1739935340655,0.8198,2690.1,2689.2,3.71857]
[1739935340868,0.8198,2690.1,2689.5,3.71812]
[1739935341360,0.8198,2690.1,2689.6,4.00095]
[1739935341660,0.8198,2690.1,2689.6,4.46199899]
[1739935341857,0.8198,2690.1,2689.6,4.74499899]
[1739935342064,0.8198,2690.1,2689.6,5.29535733]
[1739935342758,0.8198,2690.1,2690.0,0.74299502]
[1739935343328,0.8198,2690.1,2689.6,4.46199899]
[1739935344344,0.8198,2690.1,2689.7,0.72707618]
[1739935351238,0.7661,2689.9,2689.6,4.46199899]
[1739935351439,0.04647455,2689.8,2689.6,4.46199899]
[1739935351639,3.25057533,2689.7,2688.9,4.46199899]
[1739935351859,0.7661,2689.5,2688.9,4.46199899]
[1739935352280,0.7661,2689.5,2688.7,4.46199899]
[1739935352547,0.8227,2689.3,2688.9,0.73463849]
[1739935353079,0.8227,2689.3,2688.7,4.46199899]
[1739935353378,0.8227,2689.3,2688.8,0.7625956]
[1739935356082,0.8227,2689.3,2688.8,4.4816656]
[1739935356295,0.8247,2689.5,2688.8,9.69416459]
[1739935356512,0.8247,2689.5,2688.9,0.96941646]
[1739935358169,0.8247,2689.5,2689.0,0.7906]
[1739935358353,0.7656,2689.9,2689.1,3.0]
[1739935358560,0.7656,2689.9,2689.0,0.7906]
[1739935358759,0.7656,2689.9,2689.2,3.0]
[1739935358959,0.7656,2689.9,2689.1,4.51642883]
[1739935359162,0.7656,2689.9,2689.4,0.73015399]
[1739935359991,0.0464726,2689.8,2689.1,0.79779883]
[1739935360183,0.8144,2689.7,2688.9,3.71895]
[1739935360561,0.8144,2689.7,2689.0,3.71881]
[1739935360760,0.8144,2689.7,2689.1,3.71871]
[1739935360962,0.8144,2689.7,2689.3,0.75409224]
[1739935361391,3.0,2690.5,2689.3,0.75409224]
[1739935361571,0.8144,2690.3,2689.3,6.11579035]
[1739935361772,0.8144,2690.3,2689.4,0.281]
[1739935362158,0.8144,2690.3,2689.4,3.9992]
[1739935362596,0.8144,2690.3,2689.4,7.71738]
[1739935362958,0.8144,2690.3,2689.5,3.71812]
[1739935363156,0.8144,2690.3,2689.6,0.77173]
[1739935365195,0.8144,2690.3,2689.6,4.48975]
[1739935366262,0.8144,2690.3,2689.6,0.77173]
[1739935366592,0.8144,2690.3,2690.1,0.72889796]
[1739935368595,0.8144,2690.3,2689.6,0.77173]
[1739935368802,0.8144,2690.3,2689.6,0.720717]
[1739935368960,0.8144,2690.3,2690.0,0.73344565]
[1739935370896,0.8144,2690.3,2689.3,4.74112284]
[1739935371074,0.86116987,2690.2,2689.3,4.74199899]
[1739935371609,0.86116987,2690.2,2689.3,4.46199899]
[1739935371809,0.8147,2690.0,2689.3,4.46199899]
[1739935372011,0.8147,2689.8,2689.5,0.73264824]
[1739935376092,0.8147,2689.8,2689.3,4.46199899]
[1739935376294,0.86117279,2689.8,2689.3,4.46199899]
[1739935376490,0.86117279,2689.8,2689.3,5.21529675]
[1739935376491,0.8147,2689.8,2689.3,5.21529675]
[1739935380131,0.8147,2689.8,2689.3,0.75329776]
[1739935380298,1.64461753,2689.8,2689.3,0.75329776]
[1739935381429,0.8318,2689.6,2689.3,0.75329776]
[1739935381629,0.8203,2689.4,2688.7,0.279]
[1739935382708,0.8203,2689.4,2689.2,0.74151673]
[1739935383217,0.7784,2689.7,2689.2,0.74151673]
[1739935384438,0.7784,2689.7,2689.2,4.45999673]
[1739935384630,5.7841,2690.0,2689.3,0.44599967]
[1739935384836,5.7841,2690.0,2689.4,0.8332]
[1739935385010,5.7841,2690.0,2689.4,4.55149]
[1739935385902,5.0,2690.0,2689.7,3.71787]
[1739935386105,5.0,2690.0,2689.8,0.371787]
[1739935387434,5.0,2690.0,2689.6,0.55]
[1739935387803,5.0,2690.0,2689.5,4.74099899]
[1739935388325,5.0,2690.0,2689.9,0.73623062]
[1739935389638,5.0,2690.0,2689.9,0.99792434]
[1739935398515,5.0,2690.0,2689.9,0.73623062]
[1739935398846,5.0,2690.0,2689.9,0.99788442]
[1739935399953,5.0,2690.0,2689.9,0.2616538]
[1739935403956,6.30524689,2690.0,2689.9,0.2616538]
[1739935404317,5.8006,2690.0,2689.9,0.2616538]
[1739935405154,5.8006,2690.0,2689.3,0.44599967]
[1739935405155,5.8006,2690.0,2689.4,0.2616538]
[1739935405541,5.8006,2690.0,2689.7,0.75555107]
[1739935405857,5.8006,2690.0,2689.4,0.2616538]
[1739935406439,5.8006,2690.0,2689.3,0.44599967]
[1739935406440,5.8006,2690.0,2689.8,0.2616538]
[1739935407156,0.04647261,2689.9,2689.8,0.2616538]
[1739935407848,8.86978261,2690.0,2689.8,0.2616538]
[1739935408162,0.04647351,2689.9,2689.4,0.76265878]
[1739935408338,8.86978261,2690.0,2689.4,0.76265878]
[1739935408531,0.04647402,2689.9,2689.4,0.76265878]
[1739935409059,0.8006,2689.8,2689.1,0.2616538]
[1739935409258,0.04647725,2689.7,2689.1,0.2616538]
[1739935409463,0.7801,2689.6,2689.1,0.2616538]
[1739935409769,0.7801,2689.6,2689.2,0.74685393]
[1739935409932,5.0,2690.0,2689.2,1.50235393]
[1739935410139,0.7801,2689.8,2689.2,0.74685393]
[1739935410345,0.7801,2689.8,2689.2,1.00850773]
[1739935411567,5.0,2690.0,2689.4,0.7555]
[1739935411860,5.0,2690.0,2689.4,4.47375]
[1739935412841,5.0,2690.0,2689.5,0.2616538]
[1739935413255,5.0,2690.0,2689.7,0.74618297]
[1739935413962,5.0,2690.0,2689.8,0.2616538]
[1739935415034,5.0,2690.0,2689.9,0.2616538]
[1739935419433,5.7501,2690.0,2689.9,0.2616538]
[1739935419867,6.32975718,2690.0,2689.9,0.2616538]
[1739935420645,6.32975718,2690.0,2689.5,0.74832543]
[1739935420846,0.04647398,2689.9,2689.5,0.74832543]
[1739935421276,0.04647398,2689.9,2689.3,0.2616538]
[1739935421676,5.7501,2690.0,2689.3,0.2616538]
[1739935421851,5.7501,2690.0,2689.4,0.75801683]
[1739935422675,5.7501,2690.0,2689.5,0.2616538]
[1739935422982,0.04647436,2689.9,2689.5,0.2616538]
[1739935423682,0.04647436,2689.9,2689.6,0.2616538]
[1739935423843,0.6261318,2689.9,2689.6,0.2616538]
[1739935425549,0.6261318,2689.9,2689.7,0.2616538]
[1739935426751,0.04647428,2689.9,2689.7,0.2616538]
[1739935426975,0.04647428,2689.9,2689.4,0.75801683]
[1739935428147,0.04647428,2689.9,2689.5,0.26205477]
[1739935429283,0.04647428,2689.9,2689.6,0.26205477]
[1739935429780,0.04647439,2689.9,2689.6,0.26205477]
[1739935430486,0.62613183,2689.9,2689.7,0.26205477]
[1739935430783,0.7999,2689.8,2689.7,0.26205477]
[1739935431880,0.7999,2689.8,2689.0,0.26205477]
[1739935432060,0.04647885,2689.7,2689.0,0.26205477]
[1739935432380,0.04647885,2689.7,2689.0,0.69790025]
[1739935432685,0.04647885,2689.7,2689.2,0.74442464]
[1739935433353,0.84637888,2689.8,2689.2,0.74442464]
[1739935433586,0.7999,2689.8,2689.2,0.74442464]
[1739935433985,0.84637888,2689.8,2689.3,0.26205477]
[1739935434281,1.44250363,2689.8,2689.3,0.26205477]
[1739935434676,0.7999,2689.8,2689.3,0.26205477]
[1739935435452,0.7999,2689.8,2689.3,1.08245477]
[1739935435654,5.7999,2690.0,2689.4,0.26205477]
[1739935436999,0.04647517,2689.9,2689.4,0.26205477]
[1739935437209,0.04647517,2689.9,2689.5,0.26205477]
[1739935438613,0.7999,2689.8,2689.6,0.26205477]
[1739935438758,0.04647816,2689.7,2689.6,0.26205477]
[1739935439259,0.84637837,2689.8,2689.6,0.26205477]
[1739935439769,0.84637837,2689.8,2689.2,0.74442464]
[1739935440197,0.7999,2689.8,2689.2,0.74442464]
[1739935440681,0.04647745,2689.7,2689.2,0.74442464]
[1739935440868,0.04647745,2689.7,2689.3,0.26213759]
[1739935442281,0.7999,2689.8,2689.3,0.26213759]
[1739935442490,0.7999,2689.8,2689.4,0.26213759]
[1739935443493,0.7999,2689.8,2689.5,0.26213759]
[1739935443677,5.0,2690.0,2689.5,1.08253759]
[1739935444800,5.0,2690.0,2689.6,0.48007376]
[1739935445279,5.0,2690.0,2689.6,0.74221135]
[1739935445598,5.0,2690.0,2689.7,3.71786]
[1739935445802,5.0,2690.0,2689.8,0.7614]
[1739935446588,5.0,2690.0,2689.9,0.26213759]
[1739935446803,5.0,2690.0,2689.9,0.99235465]
[1739935447267,5.0,2690.0,2689.9,1.27139213]
[1739935449889,5.0,2690.0,2689.9,0.54117507]
[1739935451308,5.0,2690.0,2689.9,0.26213759]
[1739935452318,5.0,2690.0,2689.9,1.03253759]
[1739935452521,5.0,2690.0,2689.9,1.23970552]
[1739935452822,5.0,2690.0,2689.9,0.26213759]
[1739935453726,5.0,2690.0,2689.9,0.54117507]
[1739935467616,5.7719,2690.0,2689.9,0.54117507]
[1739935471440,5.7719,2690.0,2689.9,0.26213759]
[1739935471850,5.81837653,2690.0,2689.9,0.26213759]
[1739935472141,6.64866172,2690.0,2689.9,0.54077183]
[1739935472436,6.60218519,2690.0,2689.9,0.27863424]
[1739935472641,6.64866313,2690.0,2689.9,0.27863424]
[1739935473028,6.64866545,2690.0,2689.9,0.27863424]
[1739935473624,6.64866481,2690.0,2689.9,0.27863424]
[1739935473824,0.7943,2689.9,2689.4,0.54077183]
[1739935474037,0.71358692,2689.8,2689.4,0.54077183]
[1739935474748,0.7509,2689.7,2689.4,0.54077183]
[1739935474914,0.0464804,2689.6,2689.4,0.26213759]
[1739935475113,0.0464804,2689.6,2689.5,0.26213759]
[1739935476210,0.0464804,2689.6,2689.3,0.73405781]
[1739935477752,0.0464804,2689.6,2689.4,0.26184507]
[1739935478930,0.7509,2689.5,2689.4,0.26184507]
[1739935479130,3.23537533,2689.5,2689.4,0.26184507]
[1739935479342,6.61004456,2689.5,2689.4,0.26184507]
[1739935479540,0.7509,2689.4,2688.8,0.26184507]
[1739935479758,0.7509,2689.2,2688.8,0.26184507]
[1739935479944,0.7509,2689.0,2688.8,0.26184507]
[1739935480130,0.04649256,2688.9,2688.8,0.26184507]
[1739935480531,0.04649256,2688.9,2688.6,0.27859552]
[1739935481626,0.04649256,2688.9,2688.5,0.74505021]
[1739935483059,0.42623182,2688.9,2688.5,0.74505021]
[1739935483356,0.37973926,2688.9,2688.5,0.74505021]
[1739935484660,0.7509,2689.0,2688.5,0.74505021]
[1739935494356,0.8281,2689.3,2688.6,0.8164]
[1739935496088,0.8281,2689.3,2688.6,6.1764]
[1739935497859,0.7675,2689.6,2688.6,6.1764]
[1739935498061,0.7675,2689.6,2688.7,0.69214502]
[1739935498439,0.04648104,2689.5,2688.7,1.23117445]
[1739935498847,0.04648104,2689.5,2689.0,0.73265509]
[1739935499255,0.8042,2689.4,2689.0,0.73265509]
[1739935499462,0.8042,2689.4,2688.7,1.23117445]
[1739935499667,0.8042,2689.4,2688.8,0.57507027]
[1739935500779,0.8042,2689.2,2688.7,0.73198382]
[1739935501107,0.8042,2689.2,2688.6,5.36]
[1739935501108,0.80278999,2689.1,2688.6,5.36]
[1739935501557,0.7563,2689.1,2688.6,5.36]
[1739935502088,0.7563,2689.1,2688.5,0.7971]
[1739935502248,0.7666,2689.5,2688.7,0.7901]
[1739935502446,0.7666,2689.5,2688.8,0.450941]
[1739935502784,0.7666,2689.5,2688.9,0.7901]
[1739935503281,0.8004,2689.7,2688.9,1.05177182]
[1739935503479,0.8004,2689.9,2689.1,0.7836]
[1739935503696,0.8004,2689.9,2689.2,0.81627429]
[1739935504379,0.84687276,2689.9,2689.2,0.81627429]
[1739935504586,0.84687276,2689.9,2689.3,0.26167182]
[1739935504945,0.84687276,2689.9,2689.3,1.01063325]
[1739935506949,0.84687276,2689.9,2689.3,0.74896143]
[1739935507651,0.8004,2689.9,2689.3,0.74896143]
[1739935508571,0.8004,2689.9,2689.3,1.53766143]
[1739935509378,0.8004,2689.9,2689.4,0.26169662]
[1739935510260,0.8004,2689.9,2689.4,0.54018851]
[1739935512085,5.0,2690.0,2689.4,0.54018851]
[1739935512254,0.809,2689.9,2689.4,0.54018851]
[1739935512663,0.809,2689.9,2689.4,0.7469835]
[1739935512869,5.0,2690.0,2689.4,0.7469835]
[1739935515259,5.0,2690.0,2689.4,0.54018851]
[1739935519276,5.0,2690.0,2689.5,0.26169662]
[1739935520468,5.0,2690.0,2689.7,0.8274]
[1739935522088,5.0,2690.0,2689.7,1.58435384]
[1739935525706,5.0,2690.0,2689.8,0.26175917]
[1739935527007,5.0,2690.0,2689.7,1.58435384]
[1739935529827,5.0,2690.0,2689.8,0.26183431]
[1739935530987,5.0,2690.0,2689.7,1.58435384]
[1739935532228,5.0,2690.0,2689.7,0.75695384]
[1739935533920,5.0,2690.0,2689.8,0.26217252]
[1739935535925,5.0,2690.0,2689.9,0.26217252]
[1739935544219,5.0,2690.0,2689.9,4.74498252]
[1739935544438,5.0,2690.0,2689.9,5.29517616]
[1739935545000,5.0,2690.0,2689.9,5.84517616]
[1739935545409,5.0,2690.0,2689.9,11.20517616]
[1739935545613,5.0,2690.0,2689.9,13.68965149]
[1739935547740,5.0,2690.0,2689.9,13.42747897]
[1739935547935,5.0,2690.0,2689.9,13.68928955]
[1739935548139,3.50957804,2690.0,2689.9,13.68928955]
[1739935548358,3.50957804,2690.0,2689.9,16.68928955]
[1739935549445,3.50957804,2690.0,2689.9,25.49928955]
[1739935550837,2.33009106,2690.0,2689.9,25.49928955]
[1739935555210,1.58137106,2690.0,2689.9,25.49928955]
[1739935557813,0.08937106,2690.0,2689.9,25.49928955]
[1739935558147,0.7969,2691.1,2690.5,0.8322]
[1739935558309,0.7969,2691.1,2690.6,5.91]
[1739935558749,0.7969,2691.1,2690.8,0.55]
[1739935559712,0.7969,2691.1,2690.8,5.91]
[1739935559941,0.8274,2691.4,2690.8,5.91]
[1739935561050,0.82152272,2691.4,2690.8,5.91]
[1739935561217,0.82152272,2691.4,2690.8,6.46019364]
[1739935561417,0.82152272,2691.4,2691.0,0.55]
[1739935563250,0.82152272,2691.4,2691.1,0.76231712]
[1739935563553,0.82152272,2691.4,2691.0,0.55]
[1739935564554,0.82152272,2691.4,2691.0,1.29600672]
[1739935567433,0.82152272,2691.4,2691.0,2.01302837]
[1739935568621,0.82152272,2691.4,2691.0,1.29600672]
[1739935572859,0.82152272,2691.4,2691.0,0.74600672]
[1739935573059,0.82152272,2691.4,2691.1,0.26150474]
[1739935574324,0.82152272,2691.4,2691.2,0.26150474]
[1739935576032,0.82152272,2691.4,2691.3,0.26150474]
[1739935578967,2.05848041,2691.4,2691.3,0.26150474]
[1739935579261,2.52536299,2691.4,2691.3,0.26150474]
[1739935580374,2.52536299,2691.4,2690.9,0.26150474]
[1739935581078,2.05848041,2691.4,2690.9,0.99815545]
[1739935582174,1.23695769,2691.4,2691.0,0.26150474]
[1739935582373,0.8223509,2691.3,2691.0,0.26150474]
[1739935582577,1.23695769,2691.2,2691.0,0.26150474]
[1739935583273,0.7759,2691.1,2691.0,0.26150474]
[1739935583878,1.02363876,2691.1,2691.0,0.26150474]
[1739935584081,5.26059645,2691.1,2691.0,0.26150474]
[1739935584576,5.26060417,2691.1,2691.0,0.26150474]
[1739935585352,5.26060417,2691.1,2690.1,0.74085945]
[1739935585353,0.7746,2691.0,2690.2,0.26150474]
[1739935585560,0.7746,2690.4,2690.2,0.26150474]
[1739935586156,0.7746,2690.4,2690.3,0.26150474]
[1739935588890,0.7746,2690.4,2689.9,0.74160485]
[1739935590650,0.7746,2690.4,2690.0,0.26150474]
[1739935594389,0.809,2690.6,2690.1,0.825]
[1739935594555,0.809,2690.9,2690.2,0.55]
[1739935594752,2.47604492,2691.3,2690.3,0.55]
[1739935594973,0.809,2691.2,2690.3,0.55]
[1739935595178,3.809,2691.2,2690.3,0.55]
[1739935595387,3.809,2691.2,2690.5,0.73537633]
[1739935596390,3.809,2691.2,2690.6,0.26150474]
[1739935596688,0.809,2691.0,2690.6,0.26150474]
[1739935597291,0.809,2691.0,2690.4,0.26150474]
[1739935597971,0.809,2691.0,2690.4,1.01931881]
[1739935598176,0.809,2690.8,2690.4,0.26150474]
[1739935599962,0.8229,2691.1,2690.5,0.7547]
[1739935600162,0.8229,2691.1,2690.6,0.55]
[1739935600357,0.8229,2691.4,2690.6,0.55]
[1739935600564,0.8229,2691.4,2690.8,0.7678]
[1739935600816,0.8693478,2691.4,2690.8,0.7678]
[1739935601588,3.6887175,2691.4,2690.7,0.26150474]
[1739935602396,3.6422697,2691.4,2690.7,0.26150474]
[1739935602599,0.046453,2691.3,2690.7,0.26150474]
[1739935603096,3.6422697,2691.4,2690.7,0.26150474]
[1739935603266,3.6422697,2691.4,2690.7,1.01832836]
[1739935603688,0.046453,2691.3,2690.7,1.01832836]
[1739935603901,3.046453,2691.3,2690.7,1.01832836]
[1739935604088,4.01532527,2691.3,2690.7,1.01832836]
[1739935604878,3.96887227,2691.3,2690.8,0.26150474]
[1739935605778,3.0,2691.3,2690.8,0.26150474]
[1739935607462,0.8229,2691.4,2690.8,0.26150474]
[1739935608307,0.8229,2691.4,2690.9,0.26150474]
[1739935610134,0.8229,2691.4,2691.0,0.26150474]
[1739935611712,0.8229,2691.4,2690.8,0.26150474]
[1739935612792,0.8229,2691.4,2690.9,0.26150474]
[1739935614326,3.0,2691.5,2691.0,0.7742]
[1739935614617,2.5639,2691.6,2691.0,0.7742]
[1739935614996,2.5639,2691.6,2691.1,0.26150474]
[1739935616416,2.5639,2691.6,2691.2,0.8256]
[1739935616784,2.5639,2691.6,2691.2,1.08710474]
[1739935618121,2.5639,2691.6,2691.3,0.81150474]
[1739935618299,2.5639,2691.6,2691.5,0.55]
[1739935618994,2.5639,2691.6,2691.5,0.8242]
[1739935619322,2.5639,2691.6,2691.5,1.63570474]
[1739935620450,2.5639,2691.6,2691.5,1.08570474]
[1739935621622,2.5639,2691.6,2691.5,1.63570474]
[1739935621822,2.5639,2691.6,2691.5,1.87251711]
[1739935631294,2.5639,2691.6,2691.5,1.63570474]
[1739935636530,2.5639,2691.6,2691.5,0.26150474]
[1739935637899,2.5639,2691.6,2691.4,0.26150474]
[1739935638818,2.5639,2691.6,2691.5,1.3345]
[1739935639424,2.5639,2691.6,2691.5,1.59600474]
[1739935639917,2.5639,2691.6,2691.5,1.82884711]
[1739935641950,1.09518987,2691.6,2691.5,5.54424711]
[1739935642124,1.09518987,2691.6,2691.5,8.54424711]
[1739935642334,0.7827,2692.6,2692.0,0.7897]
[1739935642535,0.7827,2692.6,2692.1,0.55]
[1739935642949,0.7813,2693.0,2692.1,0.55]
[1739935643145,0.7813,2693.0,2692.1,1.082751]
[1739935643352,0.7813,2693.0,2692.1,0.55]
[1739935643776,0.7813,2693.0,2692.2,0.26150474]
[1739935644125,0.82772385,2693.0,2692.2,0.26150474]
[1739935644327,0.7813,2692.8,2692.2,0.26150474]
[1739935644514,0.04642508,2692.7,2692.2,0.26150474]
[1739935644721,0.04642508,2692.7,2692.2,1.00465157]
[1739935644922,0.04642508,2692.7,2692.2,0.26150474]
[1739935644923,0.814,2692.5,2692.2,0.26150474]
[1739935645122,0.04642993,2692.4,2692.2,0.26150474]
[1739935645323,0.04642993,2692.4,2691.7,1.097]
[1739935645830,3.29004492,2692.3,2691.5,0.273]
[1739935646280,0.814,2692.3,2691.7,0.7328657]
[1739935646431,0.814,2692.3,2691.8,1.3754]
[1739935646760,3.0,2692.5,2692.0,0.55]
[1739935646963,0.7586,2692.6,2691.9,0.55]
[1739935647667,0.7586,2692.6,2691.9,5.91]
[1739935648036,2.47604492,2692.9,2692.0,0.26163312]
[1739935648338,0.7768,2692.8,2692.0,0.26163312]
[1739935648543,0.7768,2692.8,2692.2,0.55]
[1739935648744,0.7768,2692.8,2692.4,0.75865355]
[1739935649470,0.82322388,2692.8,2692.3,0.26163312]
[1739935649980,0.82322388,2692.8,2692.4,0.34810005]
[1739935651035,0.82322388,2692.8,2692.3,0.74770391]
[1739935651249,1.15315076,2692.8,2692.3,0.74770391]
[1739935651448,1.15315076,2692.8,2692.4,0.26151596]
[1739935654271,1.15315076,2692.8,2692.2,5.36]
[1739935654272,0.8265,2692.5,2692.2,5.36]
[1739935655536,0.04643094,2692.4,2692.2,5.36]
[1739935656351,0.8265,2692.5,2692.2,5.36]
[1739935656664,0.33025449,2692.4,2692.2,5.36]
[1739935657059,0.37668542,2692.4,2692.2,5.36]
[1739935657457,0.33025449,2692.4,2692.2,5.36]
[1739935658634,0.04643222,2692.3,2692.2,5.36]
[1739935658840,0.04643222,2692.3,2691.7,0.75779469]
[1739935659173,0.7758,2692.2,2691.7,0.75779469]
[1739935659570,0.7758,2692.2,2691.8,0.6095213]
[1739935660168,0.7758,2692.7,2691.9,0.7697]
[1739935660568,0.04643065,2692.6,2691.9,0.7697]
[1739935660774,0.7758,2692.7,2691.9,1.03120952]
[1739935660938,0.41057269,2692.6,2691.9,1.03120952]
[1739935661138,0.41057269,2692.6,2692.0,0.34801178]
[1739935661940,0.7758,2692.7,2692.0,0.34801178]
[1739935662160,0.7758,2692.7,2692.2,0.55]
[1739935662561,0.82222689,2692.7,2692.2,0.55]
[1739935662765,0.7758,2692.7,2692.2,0.55]
[1739935662945,0.7758,2692.7,2692.3,0.75641487]
[1739935663139,0.7758,2692.7,2692.3,1.76982439]
[1739935663543,0.7758,2692.7,2692.4,0.34801178]